bitfinex/quotes_ETHUSD_20250424
["timestamp","ask_amount","ask_price","bid_price","bid_amount"]
[1745465997088,5.61931269,1779.6,1779.0,4.49850987]
[1745465997089,7.47406938,1779.6,1779.0,4.49850987]
[1745465997241,10.70795057,1779.7,1779.5,4.49850987]
[1745465997445,5.61924027,1779.6,1779.5,4.49850987]
[1745465997656,10.70812016,1779.7,1779.5,4.61115278]
[1745465997883,11.77889405,1779.7,1779.5,4.61115278]
[1745465998389,11.77889405,1779.7,1779.5,0.11264291]
[1745466000254,5.61924027,1779.6,1779.5,0.11264291]
[1745466000443,0.778,1779.6,1779.0,8.62113207]
[1745466000647,5.6198968,1779.4,1779.1,0.11264291]
[1745466000873,5.62022063,1779.3,1779.1,0.11264291]
[1745466001577,10.70808927,1779.4,1779.1,0.11264291]
[1745466001786,5.088,1779.4,1779.1,10.2319578]
[1745466001991,5.088,1779.4,1779.3,10.11869758]
[1745466002199,5.088,1779.4,1779.3,13.11869758]
[1745466002365,5.088,1779.4,1779.3,13.22614291]
[1745466003548,5.067,1779.7,1779.6,3.0]
[1745466004066,5.61940002,1779.6,1779.4,3.0]
[1745466005062,5.62012124,1779.4,1779.1,4.49850987]
[1745466005262,5.62012124,1779.4,1779.2,3.0]
[1745466005752,5.62018771,1779.3,1779.1,3.0]
[1745466005962,6.38518771,1779.3,1779.0,4.49850987]
[1745466006161,6.38518771,1779.3,1778.8,4.49850987]
[1745466006162,5.62060924,1779.2,1778.8,4.49850987]
[1745466006367,5.62125403,1779.0,1778.8,4.49850987]
[1745466006566,5.62125403,1779.0,1778.9,3.0]
[1745466006962,5.62094217,1779.1,1778.9,3.0]
[1745466008377,6.7658243,1779.2,1778.9,3.0]
[1745466008378,5.62113546,1779.0,1778.9,3.0]
[1745466008566,5.62110053,1779.1,1778.9,3.0]
[1745466009385,6.76577031,1779.2,1778.9,3.0]
[1745466009589,12.3865714,1779.2,1778.9,3.0]
[1745466009794,6.76577031,1779.2,1778.9,3.0]
[1745466010296,5.62083068,1779.1,1778.9,3.0]
[1745466010466,12.4805703,1779.1,1778.9,3.0]
[1745466010668,5.62113546,1779.0,1778.9,3.0]
[1745466010893,6.85969033,1779.1,1778.9,3.0]
[1745466011389,1.2386601,1779.1,1778.9,3.0]
[1745466011581,5.62095628,1779.1,1778.9,3.0]
[1745466011886,5.62113546,1779.0,1778.9,3.0]
[1745466012095,5.62098756,1779.1,1778.9,3.0]
[1745466012468,11.24212094,1779.1,1778.9,3.0]
[1745466012767,6.85971575,1779.1,1778.9,3.0]
[1745466012968,5.62113546,1779.0,1778.7,7.49850987]
[1745466013314,6.85955289,1779.1,1778.7,13.12050625]
[1745466013492,5.066,1779.3,1778.9,7.49850987]
[1745466013671,10.68620989,1779.3,1778.9,13.11975235]
[1745466013872,5.62061263,1779.2,1778.9,7.49850987]
[1745466014190,6.13459392,1779.3,1778.9,7.49850987]
[1745466014379,6.38576413,1779.2,1778.7,7.49850987]
[1745466014586,5.62100104,1779.1,1778.7,13.12054467]
[1745466014996,8.19970265,1779.2,1778.9,3.0]
[1745466015292,5.066,1779.3,1779.1,6.94940965]
[1745466015471,5.066,1779.3,1779.1,12.57002047]
[1745466016366,5.066,1779.3,1779.2,5.62050359]
[1745466017402,5.066,1779.5,1779.3,3.0]
[1745466017619,5.066,1779.5,1779.3,6.94940965]
[1745466017916,5.066,1779.5,1779.4,5.61987186]
[1745466018065,5.8722,1780.0,1779.6,3.0]
[1745466018365,17.69580837,1780.0,1779.8,3.94940965]
[1745466018575,12.07757202,1780.0,1779.8,3.94940965]
[1745466018880,5.61829316,1779.9,1779.8,3.94940965]
[1745466019089,12.07757202,1780.0,1779.8,3.94940965]
[1745466019294,5.066,1780.0,1779.8,3.0]
[1745466019491,5.066,1780.0,1779.8,8.61839694]
[1745466019702,5.066,1780.0,1779.9,13.11440697]
[1745466020276,24.9700756,1780.4,1780.0,8.61786005]
[1745466020507,5.065,1780.3,1780.0,8.61776006]
[1745466020804,5.065,1780.3,1780.2,3.0]
[1745466022411,10.68203083,1780.3,1780.2,3.0]
[1745466022908,15.21530088,1780.6,1780.2,8.61734636]
[1745466023318,8.79289114,1780.6,1780.4,3.0]
[1745466023515,5.065,1780.6,1780.4,8.61651281]
[1745466023713,5.065,1780.6,1780.4,3.0]
[1745466024020,10.68125079,1780.6,1780.4,3.0]
[1745466024182,5.065,1780.6,1780.4,3.0]
[1745466024577,5.065,1780.6,1780.3,4.49611381]
[1745466024811,5.616978,1780.4,1780.2,3.0]
[1745466025014,5.61703083,1780.3,1780.2,3.0]
[1745466025512,5.61689636,1780.4,1780.2,3.0]
[1745466026014,6.41141057,1780.5,1780.2,3.0]
[1745466026186,11.18779216,1780.6,1780.2,3.0]
[1745466026515,5.6165152,1780.5,1780.2,8.61734111]
[1745466026686,10.68122238,1780.6,1780.2,8.61734111]
[1745466026887,10.68122238,1780.6,1780.2,3.0]
[1745466027110,10.68021618,1780.6,1780.2,8.61734253]
[1745466028612,10.68021618,1780.6,1780.2,3.0]
[1745466028782,10.68021618,1780.6,1780.2,8.6173175]
[1745466029179,5.064,1780.6,1780.2,3.0]
[1745466029483,5.61687378,1780.4,1780.2,3.0]
[1745466029709,5.61703083,1780.3,1780.2,3.0]
[1745466030297,5.61684361,1780.4,1780.0,3.0]
[1745466030613,5.61659182,1780.5,1780.1,5.61764348]
[1745466030787,5.61659182,1780.5,1780.1,10.11375729]
[1745466030982,10.68025973,1780.6,1780.3,3.0]
[1745466031188,5.61642486,1780.5,1780.2,3.0]
[1745466031522,10.68024325,1780.6,1780.2,8.61731312]
[1745466032014,10.68024325,1780.6,1780.2,3.0]
[1745466032217,5.61659934,1780.5,1780.2,3.0]
[1745466033121,10.68024325,1780.6,1780.2,3.0]
[1745466033287,10.68024325,1780.6,1780.2,8.61717274]
[1745466033485,10.68024325,1780.6,1780.3,10.11291488]
[1745466033486,5.064,1780.6,1780.3,10.11291488]
[1745466033716,5.038,1780.6,1780.3,10.11291488]
[1745466034014,10.65418879,1780.6,1780.3,4.49611381]
[1745466034784,16.27055075,1780.6,1780.2,8.61714235]
[1745466034979,16.27054855,1780.6,1780.2,8.61714235]
[1745466035218,5.038,1780.6,1780.2,8.61714235]
[1745466035395,10.65418388,1780.6,1780.2,8.61714235]
[1745466037925,16.27051696,1780.6,1780.2,8.61714235]
[1745466038517,5.61641367,1780.5,1780.2,8.61714235]
[1745466038722,8.01177343,1780.5,1779.8,10.11456654]
[1745466039024,5.61747163,1780.2,1779.8,10.11454293]
[1745466039411,5.61747163,1780.2,1780.0,3.0]
[1745466039800,5.61724034,1780.3,1780.0,3.0]
[1745466040120,5.61739389,1780.2,1780.0,3.0]
[1745466040313,5.61739389,1780.2,1779.9,9.56414628]
[1745466040314,5.61739389,1780.2,1779.9,3.94587692]
[1745466040509,5.61739389,1780.2,1780.0,3.0]
[1745466040923,5.61718563,1780.3,1780.0,3.0]
[1745466041431,5.61718563,1780.3,1780.1,3.94587692]
[1745466041727,5.61686723,1780.4,1780.1,3.94587692]
[1745466041927,5.61707866,1780.3,1780.1,3.94587692]
[1745466043223,11.23435303,1780.3,1780.1,3.94587692]
[1745466043526,5.61707866,1780.3,1780.1,3.94587692]
[1745466045825,5.61734636,1780.2,1780.1,6.94587692]
[1745466046623,5.61722876,1780.3,1780.1,6.94587692]
[1745466048146,5.61734636,1780.2,1780.1,6.94587692]
[1745466049053,5.61722876,1780.3,1780.1,6.94587692]
[1745466050858,6.44804636,1780.2,1780.1,3.0]
[1745466051039,11.48604636,1780.2,1780.1,3.0]
[1745466051828,5.038,1780.2,1780.1,6.94587692]
[1745466053559,10.65534636,1780.2,1780.1,3.0]
[1745466054342,11.79877303,1780.2,1780.1,3.0]
[1745466054549,5.61843139,1779.9,1779.7,3.94587692]
[1745466054747,5.61860883,1779.8,1779.7,6.94587692]
[1745466054928,5.61872771,1779.8,1779.5,3.94587692]
[1745466055269,5.6228663,1778.5,1778.4,3.94587692]
[1745466055457,5.62256851,1778.6,1778.4,3.94587692]
[1745466055763,5.62271577,1778.5,1778.3,3.94587692]
[1745466056123,11.24526978,1778.6,1778.4,3.0]
[1745466056327,5.62271577,1778.5,1778.4,3.0]
[1745466056561,5.62271577,1778.5,1778.3,3.94587692]
[1745466057162,5.62271577,1778.5,1778.4,3.0]
[1745466057371,5.62271577,1778.5,1778.1,11.59982825]
[1745466057523,5.62318381,1778.4,1778.1,11.59982825]
[1745466057728,10.66218381,1778.4,1778.2,3.0]
[1745466058640,5.039,1778.4,1778.2,3.0]
[1745466059830,5.039,1778.4,1778.3,0.10761946]
[1745466060035,5.039,1778.4,1778.3,4.61171186]
[1745466061424,5.039,1778.4,1778.3,10.23506]
[1745466062234,5.041,1778.7,1778.5,5.62266506]
[1745466062565,5.041,1778.7,1778.6,7.61708187]
[1745466062863,5.041,1778.7,1778.6,13.23948151]
[1745466064068,5.92,1779.0,1778.7,3.0]
[1745466064266,11.54127861,1779.0,1778.7,3.0]
[1745466064461,5.62145145,1778.9,1778.8,0.11293169]
[1745466065779,5.62198649,1778.8,1778.4,13.12708656]
[1745466066149,5.62198649,1778.8,1778.5,0.11119884]
[1745466066657,5.62163217,1778.9,1778.5,5.73389293]
[1745466066842,7.45333378,1778.9,1778.5,5.73389293]
[1745466067267,5.6218396,1778.8,1778.5,0.11119884]
[1745466067775,7.45333378,1778.9,1778.5,5.7339018]
[1745466068073,7.45333378,1778.9,1777.6,5.82551725]
[1745466068074,0.825,1778.8,1777.6,0.2]
[1745466068239,5.62587904,1777.5,1776.7,0.813]
[1745466068577,5.6585879,1777.4,1776.7,5.3170924]
[1745466068878,5.62744424,1777.1,1776.7,5.3170924]
[1745466069077,5.62750933,1777.0,1776.8,3.0]
[1745466069389,5.62701927,1777.2,1776.7,16.57356336]
[1745466069583,5.62727673,1777.1,1776.7,5.3170924]
[1745466069876,5.62682871,1777.2,1776.7,5.3170924]
[1745466069877,5.62699044,1777.2,1776.7,10.94536994]
[1745466070089,5.62746201,1777.0,1776.9,7.5040924]
[1745466070384,5.62744802,1777.1,1776.8,4.5040924]
[1745466070680,5.62749593,1777.0,1776.8,4.5040924]
[1745466070921,5.62744802,1777.1,1776.8,4.5040924]
[1745466071086,6.69890485,1777.3,1776.8,10.13217263]
[1745466071292,6.69890485,1777.3,1776.9,3.0]
[1745466071453,6.69888281,1777.3,1776.8,5.62808052]
[1745466071792,10.72232179,1777.4,1777.0,3.0]
[1745466072687,10.72232179,1777.4,1776.9,5.62765253]
[1745466072895,10.72232179,1777.4,1776.8,5.62802878]
[1745466072896,5.62688057,1777.2,1776.8,5.62802878]
[1745466073096,5.62669706,1777.3,1776.8,5.62802878]
[1745466073446,5.62669081,1777.3,1776.8,5.62802878]
[1745466073985,5.62669081,1777.3,1776.9,5.62772889]
[1745466074145,17.98368084,1777.4,1776.9,5.62772889]
[1745466074345,5.62656983,1777.3,1776.8,5.62789664]
[1745466074668,5.62656983,1777.3,1776.9,3.0]
[1745466075367,5.62656983,1777.3,1776.9,8.62765375]
[1745466075569,5.62656983,1777.3,1776.9,3.0]
[1745466076017,5.62656983,1777.3,1776.8,8.62789662]
[1745466076511,5.62684886,1777.2,1776.8,8.62789662]
[1745466076694,5.6275867,1777.0,1776.6,0.39932491]
[1745466076895,11.25542678,1777.0,1776.6,0.39932491]
[1745466077578,5.6277977,1776.9,1776.6,3.39932491]
[1745466077767,5.62830343,1776.8,1776.6,0.39932491]
[1745466078168,5.62841222,1776.7,1776.6,0.39932491]
[1745466080567,6.41319975,1776.8,1776.6,0.39932491]
[1745466080773,5.62841222,1776.7,1776.6,0.39932491]
[1745466081414,6.41321381,1776.8,1776.6,0.39932491]
[1745466081573,5.62841222,1776.7,1776.6,0.39932491]
[1745466084025,0.7851,1777.1,1776.6,4.90341731]
[1745466084228,11.51334822,1777.1,1776.8,3.0]
[1745466084520,5.62748238,1777.0,1776.8,3.0]
[1745466085591,6.52898601,1777.0,1776.8,3.0]
[1745466085779,5.62816065,1776.8,1776.6,3.39932491]
[1745466086183,5.62841222,1776.7,1776.6,3.39932491]
[1745466086785,5.62827708,1776.8,1776.6,3.39932491]
[1745466087322,11.25668162,1776.8,1776.6,3.39932491]
[1745466087530,11.25668227,1776.8,1776.6,3.39932491]
[1745466087730,5.62841222,1776.7,1776.6,3.39932491]
[1745466087883,6.41351222,1776.7,1776.6,0.39932491]
[1745466088415,12.03389503,1776.7,1776.6,0.39932491]
[1745466088598,13.91267906,1776.7,1776.6,0.39932491]
[1745466090506,13.12757906,1776.7,1776.6,0.39932491]
[1745466090707,11.24879503,1776.7,1776.6,0.39932491]
[1745466091150,10.72941222,1776.7,1776.6,0.39932491]
[1745466091359,0.90150363,1777.0,1776.6,0.39932491]
[1745466091514,5.101,1776.9,1776.8,3.96098026]
[1745466092645,5.101,1776.9,1776.7,3.0]
[1745466092945,5.101,1776.9,1776.7,6.96098026]
[1745466093843,5.62809545,1776.8,1776.7,6.96098026]
[1745466094171,5.62700182,1777.2,1776.8,6.42418315]
[1745466094458,5.62714534,1777.1,1777.0,3.0]
[1745466094656,5.62682871,1777.2,1777.0,3.0]
[1745466094955,5.62714534,1777.1,1777.0,3.0]
[1745466095115,5.62759447,1777.0,1776.9,3.0]
[1745466096250,5.62746201,1777.0,1776.7,3.0]
[1745466096413,10.81691471,1776.9,1776.7,3.0]
[1745466096613,5.62809545,1776.8,1776.7,3.0]
[1745466096968,5.62809545,1776.8,1776.6,4.36030517]
[1745466097284,5.62841222,1776.7,1776.6,7.36030517]
[1745466097479,6.15237877,1776.7,1776.6,7.36030517]
[1745466097783,6.15237877,1776.7,1776.6,4.36030517]
[1745466097983,8.11572619,1776.7,1776.6,0.39932491]
[1745466100083,8.43074554,1776.7,1776.6,0.39932491]
[1745466102367,6.46739812,1776.7,1776.6,0.39932491]
[1745466103850,5.94343157,1776.7,1776.6,0.39932491]
[1745466106965,11.13343157,1776.7,1776.6,0.39932491]
[1745466107996,11.13343157,1776.7,1776.6,4.36030517]
[1745466108539,5.62936275,1776.4,1776.3,0.005]
[1745466108994,5.62936275,1776.4,1776.3,3.96598026]
[1745466111500,5.62936275,1776.4,1776.3,0.005]
[1745466112607,6.42196275,1776.4,1776.3,1e-08]
[1745466112805,7.62707143,1776.4,1776.3,1e-08]
[1745466113005,26.19307143,1776.4,1776.3,1e-08]
[1745466113206,26.50770988,1776.4,1776.3,1e-08]
[1745466114301,27.05770988,1776.4,1776.3,1e-08]
[1745466114705,6.42386478,1775.8,1775.7,0.005]
[1745466114904,6.42386478,1775.8,1775.7,3.96598026]
[1745466114905,5.63126478,1775.8,1775.7,3.96598026]
[1745466115108,5.191,1775.8,1775.7,3.96598026]
[1745466115277,5.63126478,1775.8,1775.7,3.96598026]
[1745466115478,5.191,1775.8,1775.7,3.96598026]
[1745466115793,10.82226478,1775.8,1775.7,0.005]
[1745466115996,12.46761235,1775.8,1775.7,0.005]
[1745466116403,0.7926,1776.2,1775.7,0.8113]
[1745466116707,5.6303136,1776.1,1775.8,3.96098026]
[1745466116911,11.61374044,1776.2,1775.8,3.96098026]
[1745466117298,5.63047883,1776.1,1775.8,3.96098026]
[1745466118095,11.61375414,1776.2,1776.0,3.96098026]
[1745466118280,5.6303136,1776.1,1776.0,3.96098026]
[1745466118671,5.191,1776.2,1776.0,3.96098026]
[1745466118874,5.63063063,1776.0,1775.9,3.96098026]
[1745466119576,5.63126478,1775.8,1775.7,0.005]
[1745466119838,5.191,1775.8,1775.7,0.005]
[1745466120880,5.63071084,1776.0,1775.8,0.7952]
[1745466121083,5.63126478,1775.8,1775.7,0.005]
[1745466121269,6.75748603,1775.8,1775.7,0.005]
[1745466121775,7.54298603,1775.8,1775.7,0.005]
[1745466124813,5.63126478,1775.8,1775.7,0.005]
[1745466125011,5.63076852,1776.0,1775.7,3.96598026]
[1745466125012,5.63079368,1776.0,1775.7,3.96598026]
[1745466125217,5.215,1775.9,1775.7,3.96598026]
[1745466125618,10.84596219,1775.9,1775.7,3.96598026]
[1745466125938,5.63126478,1775.8,1775.7,0.005]
[1745466126136,6.44896478,1775.8,1775.7,0.005]
[1745466126556,5.216,1775.8,1775.7,0.8232]
[1745466126768,0.8177,1776.3,1775.7,0.005]
[1745466127051,6.44896478,1775.8,1775.7,1e-08]
[1745466127257,12.87296779,1775.8,1775.7,1e-08]
[1745466128146,10.84726478,1775.8,1775.7,1e-08]
[1745466129746,5.216,1775.8,1775.7,0.81820001]
[1745466130114,5.63043924,1776.1,1775.7,6.44978192]
[1745466130447,10.84663063,1776.0,1775.9,3.96098026]
[1745466131754,5.216,1776.0,1775.7,10.41075146]
[1745466132055,5.216,1776.0,1775.9,3.96098026]
[1745466133947,5.63043924,1776.1,1775.9,3.96098026]
[1745466134114,5.216,1776.1,1775.9,3.96098026]
[1745466135159,5.216,1776.1,1775.9,9.59171626]
[1745466135452,5.216,1776.1,1776.0,0.8182]
[1745466135751,5.216,1776.1,1776.0,6.44883063]
[1745466136251,5.216,1776.1,1776.0,9.44883063]
[1745466137052,5.216,1776.1,1776.0,3.8182]
[1745466137256,10.8463136,1776.1,1776.0,3.8182]
[1745466137415,10.8463136,1776.1,1775.7,5.63152388]
[1745466137416,5.63094768,1775.9,1775.8,0.789]
[1745466137620,5.63126478,1775.8,1775.7,1e-08]
[1745466139849,10.84655063,1776.1,1775.7,0.78900001]
[1745466140051,5.63055063,1776.1,1775.8,3.96098026]
[1745466140279,5.215,1776.0,1775.8,3.96098026]
[1745466140684,10.84566692,1776.0,1775.8,3.96098026]
[1745466141475,5.63094768,1775.9,1775.8,3.96098026]
[1745466141684,5.63094768,1775.9,1775.7,3.00000001]
[1745466141854,5.215,1776.0,1775.8,3.96098026]
[1745466142183,10.84565954,1776.0,1775.8,3.96098026]
[1745466142750,5.63094768,1775.9,1775.8,3.96098026]
[1745466142975,10.84565954,1776.0,1775.8,3.96098026]
[1745466143183,10.84583993,1776.0,1775.8,3.96098026]
[1745466143681,5.216,1776.2,1775.9,5.63073489]
[1745466143886,5.216,1776.2,1776.1,3.96098026]
[1745466144579,11.37036083,1776.2,1776.1,3.96098026]
[1745466145187,5.74036421,1776.2,1776.1,3.96098026]
[1745466145486,5.216,1776.2,1776.1,4.79268026]
[1745466146191,5.216,1776.2,1776.1,10.42299386]
[1745466146392,5.216,1776.2,1776.1,4.79268026]
[1745466150080,5.63056567,1776.1,1776.0,3.0]
[1745466150281,6.71522224,1776.1,1775.8,6.96098026]
[1745466150490,10.84619144,1776.2,1775.8,6.96098026]
[1745466150697,11.26108798,1776.1,1775.8,3.96098026]
[1745466151001,5.63053053,1776.1,1775.8,6.96098026]
[1745466151212,10.84611368,1776.2,1775.8,12.59212919]
[1745466151501,12.57333107,1776.2,1775.8,12.59212919]
[1745466151706,5.63044963,1776.1,1775.8,6.96098026]
[1745466152312,12.57339392,1776.2,1775.8,12.59224249]
[1745466152487,5.216,1776.2,1776.0,9.5916101]
[1745466152688,5.216,1776.2,1776.1,0.7919]
[1745466153000,5.63054432,1776.1,1775.9,0.7919]
[1745466153200,5.63054432,1776.1,1775.8,3.96098026]
[1745466153201,6.79710875,1776.1,1775.8,3.96098026]
[1745466153407,5.63076181,1776.0,1775.8,3.96098026]
[1745466153839,11.26169131,1776.0,1775.8,3.96098026]
[1745466154011,11.22262266,1776.0,1775.8,3.96098026]
[1745466154393,5.63094768,1775.9,1775.8,3.96098026]
[1745466155441,5.59169316,1776.0,1775.8,3.96098026]
[1745466156136,5.63081856,1776.0,1775.8,3.96098026]
[1745466157037,5.63094768,1775.9,1775.8,3.96098026]
[1745466157927,6.87360278,1776.0,1775.8,3.96098026]
[1745466158413,7.3981288,1776.0,1775.8,3.96098026]
[1745466159037,5.63094768,1775.9,1775.8,3.96098026]
[1745466159937,5.192,1775.9,1775.8,3.96098026]
[1745466160101,0.8191,1776.2,1775.8,13.38383742]
[1745466160303,5.192,1776.1,1775.9,5.63092851]
[1745466160615,5.192,1776.1,1776.0,3.96098026]
[1745466161135,5.192,1776.1,1775.9,3.96098026]
[1745466161367,5.192,1776.1,1775.9,9.5917929]
[1745466162173,10.82242334,1776.1,1775.9,3.96098026]
[1745466162963,11.64152334,1776.1,1775.9,3.96098026]
[1745466163131,11.64159815,1776.1,1775.9,3.96098026]
[1745466163664,5.192,1776.1,1775.9,3.96098026]
[1745466163868,10.82231947,1776.1,1775.9,3.96098026]
[1745466165170,5.63063063,1776.0,1775.9,3.96098026]
[1745466166469,5.192,1776.1,1775.9,3.96098026]
[1745466167675,10.82235744,1776.1,1775.9,3.96098026]
[1745466168136,5.192,1776.1,1775.9,3.96098026]
[1745466169081,10.82245434,1776.1,1775.9,3.96098026]
[1745466169381,5.63063063,1776.0,1775.9,3.96098026]
[1745466169779,0.52538031,1776.0,1775.9,3.96098026]
[1745466170001,1.05076108,1776.0,1775.9,3.96098026]
[1745466170404,1.83666108,1776.0,1775.8,3.96098026]
[1745466170699,5.63126478,1775.8,1775.7,1e-08]
[1745466170904,7.67662395,1775.8,1775.7,1e-08]
[1745466171401,8.20200426,1775.8,1775.7,1e-08]
[1745466172806,6.68202586,1775.8,1775.7,1e-08]
[1745466174105,1.05076108,1775.8,1775.7,1e-08]
[1745466174285,6.24276108,1775.8,1775.7,1e-08]
[1745466174602,5.71738031,1775.8,1775.7,1e-08]
[1745466174808,5.71738031,1775.8,1775.7,5.63158192]
[1745466175107,5.71738031,1775.8,1775.7,1e-08]
[1745466175304,5.192,1775.8,1775.7,1e-08]
[1745466176424,5.192,1775.8,1775.7,3.96098027]
[1745466176807,10.82326478,1775.8,1775.7,3.96098027]
[1745466177117,5.192,1775.8,1775.7,3.96098027]
[1745466177434,10.82326478,1775.8,1775.7,3.96098027]
[1745466177596,12.46868804,1775.8,1775.7,3.96098027]
[1745466178029,13.25458804,1775.8,1775.7,1e-08]
[1745466178386,13.77959232,1775.8,1775.7,1e-08]
[1745466178906,14.09457712,1775.8,1775.7,1e-08]
[1745466179202,14.61957414,1775.8,1775.7,1e-08]
[1745466181595,12.18825088,1775.8,1775.7,1e-08]
[1745466182444,6.2420013,1775.8,1775.7,1e-08]
[1745466182601,6.2420013,1775.8,1775.7,5.63158192]
[1745466182796,5.192,1775.9,1775.7,1e-08]
[1745466183145,5.192,1775.9,1775.8,3.96098026]
[1745466184598,10.82294768,1775.9,1775.8,3.96098026]
[1745466184800,5.192,1775.9,1775.8,3.96098026]
[1745466185432,5.192,1775.9,1775.8,10.39264504]
[1745466186598,5.14,1776.0,1775.8,4.76138026]
[1745466186799,19.3572,1776.4,1775.9,3.96098026]
[1745466186997,24.19551451,1776.4,1776.3,3.96098026]
[1745466187302,19.61599898,1776.4,1776.3,3.96098026]
[1745466187502,0.5250061,1776.4,1776.3,9.59065993]
[1745466187920,0.5250061,1776.4,1776.3,3.96098026]
[1745466188209,0.5250061,1776.4,1776.3,9.59065993]
[1745466188424,5.14,1776.5,1776.3,3.96098026]
[1745466188825,5.14,1776.5,1776.3,9.59065689]
[1745466189030,5.14,1776.5,1776.4,0.8004]
[1745466189737,5.14,1776.5,1776.3,3.96098026]
[1745466189944,5.14,1776.5,1776.3,9.59046783]
[1745466190242,5.14,1776.5,1776.3,3.96098026]
[1745466190805,5.63023417,1776.2,1776.0,3.96098026]
[1745466191029,5.6303136,1776.1,1776.0,3.96098026]
[1745466191226,10.7703136,1776.1,1776.0,3.96098026]
[1745466191630,5.63075058,1776.0,1775.8,3.96098026]
[1745466192533,10.77043392,1776.1,1775.8,3.96098026]
[1745466192713,5.63070035,1776.0,1775.8,3.96098026]
[1745466193114,5.14,1776.1,1775.8,3.96098026]
[1745466193321,5.63077685,1776.0,1775.8,3.96098026]
[1745466193527,11.26169743,1776.0,1775.8,3.96098026]
[1745466193751,5.63094768,1775.9,1775.8,3.96098026]
[1745466194033,5.63077685,1776.0,1775.8,3.96098026]
[1745466194548,5.63063072,1776.0,1775.8,3.96098026]
[1745466194759,5.63094768,1775.9,1775.8,3.96098026]
[1745466194917,5.63084302,1776.0,1775.8,3.96098026]
[1745466195117,5.63094768,1775.9,1775.8,3.96098026]
[1745466195351,10.77054982,1776.1,1775.8,3.96098026]
[1745466195553,5.63077861,1776.0,1775.8,3.96098026]
[1745466195915,5.63094768,1775.9,1775.8,3.96098026]
[1745466196850,5.63094768,1775.9,1775.7,1e-08]
[1745466197345,5.14,1776.1,1775.8,3.96098026]
[1745466197346,10.77043202,1776.1,1775.8,3.96098026]
[1745466198050,5.63063416,1776.0,1775.8,3.96098026]
[1745466199873,10.77045311,1776.1,1775.8,3.96098026]
[1745466200676,5.14,1776.1,1776.0,3.96098026]
[1745466200879,10.7703136,1776.1,1776.0,3.96098026]
[1745466202476,12.48946809,1776.1,1776.0,3.96098026]
[1745466202682,5.63126478,1775.8,1775.7,1e-08]
[1745466204290,5.63081535,1776.0,1775.7,1e-08]
[1745466204580,5.63095341,1775.9,1775.8,3.96098026]
[1745466204751,5.63081535,1776.0,1775.8,3.96098026]
[1745466204950,5.14,1775.9,1775.8,3.96098026]
[1745466205252,10.77094768,1775.9,1775.8,3.96098026]
[1745466206484,10.77094768,1775.9,1775.7,3.96098027]
[1745466206485,5.63126478,1775.8,1775.7,3.96098027]
[1745466206883,10.77118402,1775.9,1775.7,3.96098027]
[1745466208403,5.14,1775.9,1775.7,3.96098027]
[1745466208899,5.14,1775.9,1775.7,9.59244338]
[1745466209287,5.14,1775.9,1775.7,1e-08]
[1745466209599,10.77109226,1775.9,1775.8,3.96098026]
[1745466210403,5.14,1775.9,1775.8,3.96098026]
[1745466212091,10.77094768,1775.9,1775.8,3.96098026]
[1745466214406,5.63126478,1775.8,1775.7,1e-08]
[1745466215337,10.77094768,1775.9,1775.7,3.96098027]
[1745466215501,16.40213804,1775.9,1775.7,3.96098027]
[1745466215705,10.77094768,1775.9,1775.7,3.96098027]
[1745466217137,5.14,1775.9,1775.7,3.96098027]
[1745466219344,10.7709589,1775.9,1775.7,3.96098027]
[1745466220359,16.40221529,1775.9,1775.7,3.96098027]
[1745466220539,5.63126478,1775.8,1775.7,3.96098027]
[1745466221339,6.15655554,1775.8,1775.7,3.96098027]
[1745466223857,8.66360698,1775.8,1775.7,1e-08]
[1745466224656,8.97874195,1775.8,1775.7,1e-08]
[1745466225760,0.84042573,1775.8,1775.7,3.96098027]
[1745466225925,0.52529076,1775.8,1775.7,3.96098027]
[1745466226464,10.77095548,1775.9,1775.7,3.96098027]
[1745466227966,5.088,1775.8,1775.7,3.96098027]
[1745466228860,10.71926478,1775.8,1775.7,3.96098027]
[1745466229090,5.088,1775.8,1775.7,3.96098027]
[1745466229452,5.62901296,1776.6,1775.7,3.96098027]
[1745466229654,5.088,1776.6,1776.2,8.62987024]
[1745466229889,5.088,1776.6,1776.5,3.96098026]
[1745466230065,11.03196483,1776.6,1776.5,3.96098026]
[1745466231191,9.65608179,1776.6,1776.3,3.96098026]
[1745466231390,14.96970591,1776.6,1776.3,3.96098026]
[1745466232188,14.44475106,1776.6,1776.3,3.96098026]
[1745466234291,8.81589114,1776.6,1776.3,9.59063647]
[1745466234491,8.81589114,1776.6,1776.3,3.96098026]
[1745466234696,8.81589114,1776.6,1776.5,3.96098026]
[1745466234863,5.088,1776.6,1776.5,3.96098026]
[1745466236061,10.71672903,1776.6,1776.5,3.96098026]
[1745466236258,5.088,1776.6,1776.5,3.96098026]
[1745466237094,5.088,1776.6,1776.5,10.41362613]
[1745466237395,5.087,1776.9,1776.6,8.62857976]
[1745466237600,5.087,1776.9,1776.8,3.96098026]
[1745466237810,5.087,1776.9,1776.8,4.78458026]
[1745466238014,5.087,1776.9,1776.6,7.78458026]
[1745466238211,5.62847225,1776.7,1776.5,3.96098026]
[1745466238710,5.62838083,1776.8,1776.5,3.96098026]
[1745466239112,5.62828375,1776.8,1776.5,3.96098026]
[1745466240881,11.2566393,1776.8,1776.5,3.96098026]
[1745466241110,5.62872903,1776.6,1776.5,3.96098026]
[1745466241303,5.62852214,1776.7,1776.5,3.96098026]
[1745466242009,5.62872903,1776.6,1776.5,3.96098026]
[1745466243526,5.62936275,1776.4,1776.1,0.8092]
[1745466243827,10.71536275,1776.4,1776.3,3.0]
[1745466244664,10.71536275,1776.4,1776.0,3.96098026]
[1745466244665,6.80184735,1776.4,1776.0,3.96098026]
[1745466244831,5.6302937,1776.2,1776.0,3.96098026]
[1745466245034,5.6303136,1776.1,1776.0,3.96098026]
[1745466245763,5.6303136,1776.1,1775.7,6.44052742]
[1745466245764,5.63091866,1776.0,1775.8,3.96098026]
[1745466245963,5.086,1776.0,1775.9,3.0]
[1745466246535,10.71663063,1776.0,1775.8,3.96098026]
[1745466246734,10.71663063,1776.0,1775.9,3.0]
[1745466247334,5.086,1776.0,1775.9,3.0]
[1745466248573,5.086,1776.0,1775.8,3.96098026]
[1745466249079,5.086,1776.0,1775.9,3.0]
[1745466249260,5.086,1776.0,1775.9,13.38992794]